Cogmind - Beta 13 @@@ ROGUE MODE // 2024.06.02 @ 11:29:54 Player: iwantthegold Result: Self-destructed Performance ------------- Evolutions (1) 500 Regions Visited (2) 400 Robots Destroyed (24) 120 Value Destroyed (403) 403 Prototype IDs (1) 20 Alien Tech Used (0) 0 Bonus (0) 0 TOTAL SCORE: 1443 Bonus ------- None Cogmind --------- Core Integrity 306/400 Matter 0/300 Energy 95/100 System Corruption 3% Temperature Cool (12) Movement Walking (260) Ox2 Location -9/Materials Parts ------- > --- POWER (1) -------- (None) > --- PROPULSION (3) --- Light Treads Aluminum Leg > --- UTILITY (3) ------ Large Storage Unit Signal Interpreter Seismic Detector > --- WEAPON (2) ------- Beam Rifle Rocket Launcher > --- INVENTORY (15) --- Ion Engine Light Ion Engine Light Treads Wheel Small Storage Unit Medium Storage Unit Medium Matter Pod (0) Hardlight Generator Medium Laser Beam Rifle Faulty Advanced Beam Cannon Assault Rifle Improved Light Cannon Peak State ------------ > --- POWER ------------ Light Ion Engine > --- PROPULSION ------- Light Treads Aluminum Leg Aluminum Leg > --- UTILITY ---------- Large Storage Unit Signal Interpreter Seismic Detector > --- WEAPON ----------- Beam Rifle Advanced Beam Cannon > --- INVENTORY -------- Ion Engine Light Ion Engine Light Treads Wheel Small Storage Unit Medium Storage Unit Medium Matter Pod Hardlight Generator Medium Laser Beam Rifle Assault Rifle Improved Light Cannon Grenade Launcher Rocket Launcher [Rating: 13] Favorites ----------- Power Light Ion Engine Engine Light Ion Engine Propulsion Aluminum Leg Treads Light Treads Leg Aluminum Leg Utility Seismic Detector Device Seismic Detector Storage Large Storage Unit Processor Signal Interpreter Weapon Light Assault Rifle Energy Gun Beam Rifle Energy Cannon Advanced Beam Cannon Ballistic Gun Light Assault Rifle Launcher Rocket Launcher Build | -11 -10 -9 ------- Run | Yrd Mat Mat Slots Evolved 2 | . . 2 Power . | . . . Propulsion 1 | . . 1 Utility 1 | . . 1 Weapon . | . . . Parts Attached 23 | 7 4 12 Power 3 | 1 . 2 Engine 3 | 1 . 2 Core . | . . . Reactor . | . . . Propulsion 4 | 2 . 2 Treads 1 | . . 1 Leg 3 | 2 . 1 Wheel . | . . . Hover . | . . . Flight . | . . . Utility 5 | 2 2 1 Device 1 | 1 . . Storage 3 | 1 2 . Processor 1 | . . 1 Hackware . | . . . Protection . | . . . Artifact . | . . . Weapon 11 | 2 2 7 Energy Gun 4 | 1 1 2 Energy Cannon 1 | . . 1 Ballistic Gun 2 | 1 . 1 Ballistic Cannon . | . . . Launcher 4 | . 1 3 Special Weapon . | . . . Impact Weapon . | . . . Slashing Weapon . | . . . Piercing Weapon . | . . . Special Melee Weapon . | . . . Unidentified Prototypes 1 | . . 1 Parts Lost 3 | . . 3 Power 1 | . . 1 Propulsion 1 | . . 1 Utility . | . . . Weapon 1 | . . 1 Highest Loss Streak 2 | . . 2 To Critical Strikes . | . . . Average Slot Usage (%) 98 | . 100 98 Engine 10 | . 14 9 Treads 8 | . . 11 Leg 22 | . 28 21 Device 11 | . 14 11 Storage 11 | . 14 11 Processor 8 | . . 11 Energy Gun 10 | . 14 9 Ballistic Gun 11 | . 14 10 Launcher 1 | . . 1 Naked Turns . | . . . Heaviest Build 30 | 12 27 30 Greatest Support 20 | 20 20 20 Greatest Overweight (x) 3 | 3 1 2 Average Overweight (x) . | . . 1 Largest Inventory Capacity 15 | 8 15 15 Average Capacity 13 | 7 10 15 Most Carried 14 | 7 10 14 Average Carried 10 | 5 8 12 Final Capacity 15 | 8 15 15 Final Carried 13 | 7 10 13 Class Distribution -------------------- 100% | Mutant Dominant Class ---------------- Mutant | -10/Materials Mutant | -9/Materials Resources | -11 -10 -9 ----------- Run | Yrd Mat Mat Matter Collected 378 | 219 11 148 Remotely . | . . . Salvage Created 293 | 16 18 259 Parts 42 | 2 9 31 Haulers Intercepted . | . . . Recyclers Shooed 2 | . . 2 Parts Field Recycled . | . . . Retrieved Matter . | . . . Parts Self-Destructed . | . . . Prevented . | . . . Kills | -11 -10 -9 ------- Run | Yrd Mat Mat Combat Hostiles Destroyed 17 | . 3 14 Guns 6 | . 1 5 AOE 11 | . 2 9 Classes Destroyed 7 | 1 1 5 Worker 3 | . . 3 Builder 2 | . . 2 Tunneler 1 | 1 . . Recycler 1 | . . 1 Swarmer 11 | . 3 8 Grunt 3 | . . 3 Sentry 3 | . . 3 Best Kill Streak 10 | 1 3 10 Combat Bots Only 7 | . 3 7 Max Kills in Single Turn 2 | 1 2 2 Gunslinging . | . . . Exploded 2 | . 2 2 Melee . | . . . Uniques/NPCs Destroyed . | . . . Combat | -11 -10 -9 -------- Run | Yrd Mat Mat Hostile Shots Fired 114 | . 11 103 Missed 38 | . 1 37 Damage Taken 810 | . 78 732 Core 125 | . 31 94 Absorbed by Shields . | . . . Regen/Repaired (Parts) 68 | . . 68 Core Remaining (%) 93 | 100 87 . Volleys Fired 45 | 6 3 36 Largest 2 | 2 2 2 Hottest 76 | 70 70 76 Shots Fired 76 | 12 5 59 Gun 56 | 12 4 40 Cannon . | . . . Launcher 20 | . 1 19 Special . | . . . Kinetic 38 | 6 2 30 Thermal 18 | 6 2 10 Explosive 20 | . 1 19 Electromagnetic . | . . . Robot Hit Streak 10 | 4 2 10 Robot Miss Streak 3 | 1 3 3 Penetration Max . | . . . Secondary Targets . | . . . Shots Hit Robots 46 | 8 2 36 Core Hits 40 | 3 3 34 Critical Kills . | . . . Critical Parts Destroyed . | . . . Critical Strikes 1 | . . 1 Burn 1 | . . 1 Melee Attacks . | . . . Impact . | . . . Slashing . | . . . Piercing . | . . . Sneak Attacks . | . . . Combat Hostiles . | . . . Follow-up Attacks . | . . . Damage Inflicted 1608 | 80 132 1396 Guns 336 | 80 10 246 Cannons . | . . . Explosions 1272 | . 122 1150 Melee . | . . . Ramming . | . . . Kinetic 214 | 30 10 174 Thermal 122 | 50 . 72 Explosive 1272 | . 122 1150 Electromagnetic . | . . . Impact . | . . . Slashing . | . . . Piercing . | . . . Highest Corruption 3 | . . 3 Average Corruption 3 | . . 3 Corruption Purged . | . . . Corruption Blocked . | . . . Effects 2 | . . 2 Matter Fused 1 | . . 1 Energy Discharges 1 | . . 1 Overload Shots . | . . . Overflow Damage 50 | . . 50 Projectiles . | . . . Explosions 50 | . . 50 Melee . | . . . Knockbacks . | . . . Impact . | . . . Kinetic . | . . . Secondary . | . . . Self-Inflicted Damage 14 | . . 14 Shots 1 | . . 1 Rammed . | . . . Targets Rammed . | . . . Kicked . | . . . Crushed . | . . . Highest Temperature 80 | 80 30 44 Average Temperature 23 | 37 18 17 Received Heat Transfer 159 | . . 159 Siege Activations . | . . . Robots Corrupted . | . . . Combat Hostiles . | . . . Parts Fried . | . . . Impact Corruptions . | . . . Robots Melted . | . . . Combat Hostiles . | . . . Parts Melted 1 | . . 1 Heat Transferred 407 | 148 . 259 Parts Sabotaged . | . . . Parts Stolen . | . . . Parts Stripped . | . . . Power Chain Reactions . | . . . Alert | -11 -10 -9 ------- Run | Yrd Mat Mat Peak Influence 372 | 5 92 372 Initial 38 | . 3 38 Average 173 | 2 66 238 Maximum Alert Level 1 | . . 1 Low Security (%) 56 | 100 100 36 Level 1 43 | . . 63 Level 2 . | . . . Level 3 . | . . . Level 4 . | . . . Level 5 . | . . . High Security . | . . . Max Security . | . . . Squads Dispatched 1 | . . 1 Investigation . | . . . Extermination . | . . . Reinforcement 1 | . . 1 Assault . | . . . Garrison . | . . . Intercept . | . . . Searches Triggered . | . . . Construction Impeded . | . . . Haulers Reinforced . | . . . Active Scanning Responses . | . . . Cargo Convoy Interrupts . | . . . Stealth | -11 -10 -9 --------- Run | Yrd Mat Mat Distress Signals 1 | . . 1 Communications Jammed . | . . . Distress Signals . | . . . Times Spotted 25 | . 3 22 Peak Tracking Total 5 | . 3 5 Tactical Retreats 1 | . . 1 Traps | -11 -10 -9 ------- Run | Yrd Mat Mat Traps Triggered . | . . . Indirectly . | . . . Trap Hack Attempts . | . . . Triggered . | . . . Disarmed . | . . . Reprogrammed . | . . . Reused . | . . . Traps Extracted . | . . . Installed . | . . . Triggered . | . . . Machines | -11 -10 -9 ---------- Run | Yrd Mat Mat Machines Disabled 3 | . . 3 Max in Single Turn 1 | . . 1 Machines Repaired . | . . . Machines Dismantled . | . . . Machines Sabotaged . | . . . Overloaded Fab Kills . | . . . Hacking | -11 -10 -9 --------- Run | Yrd Mat Mat Machines Accessed 4 | . 2 2 Terminals 3 | . 2 1 Fabricators . | . . . Repair Stations 1 | . . 1 Recycling Units . | . . . Scanalyzers . | . . . Garrison Access . | . . . Total Hacks 9 | . 5 4 Successful 5 | . 3 2 Failed 4 | . 2 2 Catastrophic 1 | . 1 . Database Lockouts . | . . . Manual 4 | . 2 2 Terminals 7 | . 5 2 Fabricators . | . . . Repair Stations 2 | . . 2 Recycling Units . | . . . Scanalyzers . | . . . Garrison Access . | . . . Terminal Hacks 2 | . 2 . Branch Access Points 1 | . 1 . Zone Layout 1 | . 1 . Fabricator Hacks . | . . . Repair Station Hacks 2 | . . 2 Scan Component 1 | . . 1 Repair 1 | . . 1 Recycling Unit Hacks . | . . . Scanalyzer . | . . . Garrison Access Hacks . | . . . Unauthorized Hacks 1 | . 1 . Terminals 1 | . 1 . Assimilate 1 | . 1 . Fabricators . | . . . Repair Stations . | . . . Recycling Units . | . . . Scanalyzers . | . . . Garrison Access . | . . . Data Cores Recovered . | . . . Used . | . . . Hacking Detections 4 | . 2 2 Full Trace Events . | . . . Feedback Events . | . . . Feedback Blocked . | . . . Robot Schematics Acquired . | . . . Robots Built . | . . . Authchips . | . . . Time . | . . . Total Robot Build Rating . | . . . Part Schematics Acquired . | . . . Parts Built . | . . . Authchips . | . . . Time . | . . . Total Part Build Rating . | . . . Parts Repaired 1 | . . 1 Time 26 | . . 26 Parts Recycled . | . . . Recycled Matter . | . . . Retrieved Matter . | . . . Retrieved Components . | . . . Parts Scanalyzed . | . . . Part Schematics Acquired . | . . . Parts Damaged . | . . . Bothacking | -11 -10 -9 ------------ Run | Yrd Mat Mat Used RIF Installer . | . . . Robots Hacked . | . . . Non-combat . | . . . Combat . | . . . Robot Hacks Applied . | . . . Relay Couplers Released . | . . . Fabnet Peak Effective % . | . . . Robots Rewired . | . . . Allies Hacked . | . . . Hacks Repelled . | . . . Allies | -11 -10 -9 -------- Run | Yrd Mat Mat Total Allies . | . . . Largest Group . | . . . Highest-Rated Group . | . . . Highest-Rated Ally . | . . . Total Orders . | . . . Ally Attacks . | . . . Total Damage . | . . . Kills . | . . . Allies Corrupted . | . . . Allies Melted . | . . . Intel | -11 -10 -9 ------- Run | Yrd Mat Mat Robot Analysis Total . | . . . Derelict Logs Recovered . | . . . Drone Launches . | . . . Drone Recoveries . | . . . Exploration | -11 -10 -9 ------------- Run | Yrd Mat Mat Turns Passed 939 | 142 161 636 Spaces Moved 443 | 85 104 254 Core 18 | 18 . . Treads . | . . . Legs 425 | 67 104 254 Wheels . | . . . Hover . | . . . Flight . | . . . Fastest Speed 50 | 50 120 190 Average Speed 165 | 127 137 190 Slowest Speed 260 | 200 190 260 Overloaded Moves . | . . . Propulsion Burnouts . | . . . Robots Hopped . | . . . Cave-ins Triggered . | . . . Exploration Rate (%) 18 | 6 19 31 Regions Visited 2 Branch Regions . Pre-discovered Areas . | . . . Known Exits Taken . | . . . Unknown Exits Taken 2 | 1 1 . Scrap Searched . | . . . Spaces Dug . | . . . Terrain Destroyed 83 | . 6 77 Melee . | . . . Projectile . | . . . AOE 83 | . 6 77 Terrain Rammed . | . . . Walls Destroyed . | . . . Machines Disabled . | . . . Actions | -11 -10 -9 --------- Run | Yrd Mat Mat Total 571 | 104 117 350 Wait 38 | . 2 36 Move 441 | 84 103 254 Hop . | . . . Pick Up 17 | 7 3 7 Fast Attach 10 | 7 . 3 Attach 5 | . . 5 Detach 1 | . . 1 Swap 8 | . 4 4 Drop 6 | . 2 4 Fire 45 | 6 3 36 Melee . | . . . Ram . | . . . Kick . | . . . Crush . | . . . Escape Stasis . | . . . Rewire . | . . . Trap . | . . . Miscellaneous . | . . . Route ------- -11/Scrapyard -10/Materials (discovered 2 exits: *Mat / Min) -9/Materials (discovered 2 exits: *Min x2) History --------- Turn | Location | Event 2 | -11/Scrapyard | Met Revision 17 21 | -11/Scrapyard | Discovered new exit (range 16) 143 | -11/Scrapyard | Entered Materials 208 | -10/Materials | Identified exit to Mines 221 | -10/Materials | Discovered new exit (range 8) 304 | -10/Materials | Entered another Materials area 304 | -9/Materials | Evolved 2 slots: Propulsion x1, Utility x1 326 | -9/Materials | Build established: Mutant 552 | -9/Materials | Discovered new exit (range 5) 560 | -9/Materials | Identified exit to Mines 761 | -9/Materials | Discovered exit to Mines (range 13) 857 | -9/Materials | Repaired Aluminum Leg 912 | -9/Materials | Destroyed 7 combat bots 940 | -9/Materials | Self-destructed Last Messages --------------- 00920_ K-01 Serf collects debris. 00920_ U-05 Engineer lays Concrete. 00921_ U-05 Engineer builds a Wall. 00922_ M-13 Machinist repairs Welding Torch. 00924_ M-13 Machinist repairs Wheel. 00925_ U-05 Engineer lays Concrete. 00925_ K-01 Serf collects debris. 00926_ M-13 Machinist repairs Lgt. Ion Engine. 00927_ U-05 Engineer lays Concrete. 00928_ K-01 Serf cleans the Terminal. 00929_ U-05 Engineer lays Concrete. 00929_ K-01 Serf collects debris. 00930_ U-05 Engineer lays Concrete. 00931_ Aluminum Leg destroyed. 00931_ U-05 Engineer lays Concrete. 00932_ K-01 Serf collects debris. 00933_ U-05 Engineer builds a Wall. 00935_ System corrupted: Matter fused (-6). 00937_ K-01 Serf collects debris. 00937_ U-05 Engineer builds a Wall. Map ----- +----------------------------------------------------+ | ??????????# ??????# #????????????????? | | ???????????# #??????#######+###????????????????? | | ???????????# ############## #??????????????????? | | ???????????# #??????????????????? | | ???????##### ######### #??????????????????? | | ???????#// #???????# #??????????????????? | | ???????#// ###+####?????# #??????????????????? | | ???????#!! # #?????# #??????????????????? | | ???????#! + """ #?????# #??????????????????? | | ???????#!! # """ #????? ??????????????????? | | ???????#!! # """ #????? ??????????????????? | | ???????##### # #????? ??????????????????? | | ?########### # #????? "??? ??????????????? | | ?# """ ## ####+###????? """ ??????????????? | | ?# "R" ## #### #######? """ ???????????????? | | ?# " " ## ## ????????????????? | | ?# u# ## ## ????????????????? | | ?# ## ?????????????????? | | ?# """ [ ## #?????????????????? | | ?# """ # ## #?????????????????? | | ?# "" # # ## #?????????????????? | | ?# #### ### ##g #?????????????????? | | ?############### u k ###ga ###########???????? | | ?????? m ?????? | | ????? ?????? | | ????? @ gg ?????? | | ??????######+### ####### ##########????????? | | ???????????????#######?????# #?????????????????? | | ???????????????????????????# #?????????????????? | | ???????????????????????????# #?????????????????? | | ??????????????????????????? ?????????????????? | | ??????????????????????????? ????????????????? | | ??????????????????????????? T ???????????????? | | ??????????????????????????? ??????????????? | | ??????????????????????????? ####?????????????? | | ???????????????????????????##+###????????????????? | | ?????????????????????????????????????????????????? | | ?????????????????????????????????????????????????? | | ?????????????????????????????????????????????????? | | ?????????????????????????????????????????????????? | | ?????????????????????????????????????????????????? | | ?????????????????????????????????????????????????? | | ?????????????????????????????????????????????????? | | ?????????????????????????????????????????????????? | | ?????????????????????????????????????????????????? | | ?????????????????????????????????????????????????? | | ?????????????????????????????????????????????????? | | ?????????????????????????????????????????????????? | | | | | +----------------------------------------------------+ Best States ------------- Heat Dissipation 28 Energy Generation 10 Energy Capacity 125 Matter Stores 243 Matter Capacity 300 Sight Range 16 Terrain Scan Density 10 Evasion (%) 55 Item Schematics ----------------- None Robot Schematics ------------------ None Fabricated ------------ Nothing Alien Tech Used ----------------- None Achievements -------------- None Challenges ------------ None Game ------ Seed GravityRocketDissipator Manual? 0 Play Time 00:13:41 Cumulative 30.6 hours Start 2024.06.02 @ 11:19:02 End 2024.06.02 @ 11:29:54 Sessions 1 Manual Loads 0 Difficulty Rogue Special Mode None Game No. 45 Rogue 45 Adventurer 0 Explorer 0 Win Type - Total 0 Types 0/0/0/0/0/0/0/0/0 Lore% 15 Gallery% 28 Achievement% 20 Wizard Run 0 Options --------- Layout 1 ASCII 0 Keyboard 0 Movement Mouse Keybinds 0 Fullscreen 1 Font 18/SmallcapsGlow Map View 54x44 Zoom Use 0% Tactical HUD 1 Map Filters NONE Filters NONE Steam 0 RUN: 78bcb213-f612-4b4a-b9d1-e9ec586363bf